fUSD/lending_fUSD_20241116
["ID","MTS","AMOUNT","RATE_DAILY","PERIOD"]
[342384253,1731781923077,-700.31,9.996e-05,2]
[342384254,1731781923088,-569.01,9.996e-05,2]
[342384255,1731781923099,-500.0,9.996e-05,2]
[342384256,1731781923110,-500.0,9.996e-05,2]
[342384257,1731781923121,-827.35,9.996e-05,2]
[342384258,1731781923131,-1104.21,9.996e-05,2]
[342384259,1731781923143,-815.66,9.996e-05,2]
[342384260,1731781923152,-1652.0,9.996e-05,2]
[342384261,1731781923163,-526.82734827,9.996e-05,2]
[342384262,1731781923173,-500.0,9.996e-05,2]
[342384263,1731781923184,-500.0,9.996e-05,2]
[342384264,1731781923194,-1317.32,9.996e-05,2]
[342384265,1731781923204,-500.0,9.996e-05,2]
[342384266,1731781923214,-568.97,9.996e-05,2]
[342384267,1731781923224,-500.0,9.996e-05,2]
[342384268,1731781923235,-754.24,9.996e-05,2]
[342384269,1731781923245,-500.0,9.996e-05,2]
[342384270,1731781923256,-1174.63,9.996e-05,2]
[342384271,1731781923266,-1196.21,9.996e-05,2]
[342384272,1731781923275,-724.22,9.996e-05,2]
[342384273,1731781923285,-500.0,9.996e-05,2]
[342384274,1731781923295,-570.43,9.996e-05,2]
[342384275,1731781923305,-541.3,9.996e-05,2]
[342384276,1731781923315,-500.0,9.996e-05,2]
[342384277,1731781923325,-500.0,9.996e-05,2]
[342384278,1731781923335,-1804.53,9.996e-05,2]
[342384279,1731781923348,-500.0,9.996e-05,2]
[342384280,1731781923358,-500.0,9.996e-05,2]
[342384281,1731781923369,-150.0,9.996e-05,2]
[342384282,1731781923380,-788.09,9.996e-05,2]
[342384283,1731781923390,-899.27,9.996e-05,2]
[342384284,1731781923400,-500.0,9.996e-05,2]
[342384285,1731781923411,-624.79,9.996e-05,2]
[342384286,1731781923420,-670.96,9.996e-05,2]
[342384287,1731781923432,-716.94,9.996e-05,2]
[342384288,1731781923442,-500.0,9.996e-05,2]
[342384289,1731781923452,-500.0,9.996e-05,2]
[342384290,1731781923462,-595.45,9.996e-05,2]
[342384291,1731781923472,-628.01,9.996e-05,2]
[342384292,1731781923823,-500.0,9.996e-05,2]
[342384293,1731781923843,-648.13,9.996e-05,2]
[342384294,1731781923854,-581.34,9.996e-05,2]
[342384295,1731781923865,-500.0,9.996e-05,2]
[342384296,1731781923875,-747.03,9.996e-05,2]
[342384297,1731781923885,-419.9641996,9.996e-05,2]
[342384298,1731781923896,-500.0,9.996e-05,2]
[342384299,1731781923909,-500.0,9.996e-05,2]
[342384300,1731781923920,-1704.03,9.996e-05,2]
[342384301,1731781923930,-500.0,9.996e-05,2]
[342384302,1731781923941,-500.0,9.996e-05,2]
[342384303,1731781923952,-839.65,9.996e-05,2]
[342384304,1731781923963,-590.44,9.996e-05,2]
[342384305,1731781923973,-1026.66,9.996e-05,2]
[342384306,1731781923983,-1128.16,9.996e-05,2]
[342384307,1731781923994,-500.0,9.996e-05,2]
[342384308,1731781924005,-500.0,9.996e-05,2]
[342384309,1731781924016,-864.18,9.996e-05,2]
[342384310,1731781924027,-500.0,9.996e-05,2]
[342384311,1731781924038,-696.5,9.996e-05,2]
[342384312,1731781924049,-695.01,9.996e-05,2]
[342384313,1731781924063,-500.0,9.996e-05,2]
[342384314,1731781924073,-500.0,9.996e-05,2]
[342384315,1731781924084,-1494.18,9.997e-05,2]
[342384316,1731781924098,-500.0,9.997e-05,2]
[342384317,1731781924108,-540.78,9.997e-05,2]
[342384318,1731781924119,-500.0,9.997e-05,2]
[342384319,1731781924130,-500.0,9.997e-05,2]
[342384320,1731781924141,-708.4,9.997e-05,2]
[342384321,1731781924152,-700.0,9.997e-05,2]
[342384322,1731781924162,-500.0,9.997e-05,2]
[342384323,1731781924173,-646.8410008,9.997e-05,2]
[342384324,1731781924183,-543.58,9.998e-05,2]
[342384325,1731781924194,-594.8,9.998e-05,2]
[342384326,1731781924204,-671.11,9.998e-05,2]
[342384327,1731781924214,-591.49,9.998e-05,2]
[342384328,1731781924225,-738.74,9.998e-05,2]
[342384329,1731781924235,-780.84,9.998e-05,2]
[342384330,1731781924246,-755.72,9.998e-05,2]
[342384331,1731781924256,-500.0,9.998e-05,2]
[342384332,1731781924266,-500.0,9.998e-05,2]
[342384333,1731781924278,-500.0,9.998e-05,2]
[342384334,1731781924288,-500.0,9.998e-05,2]
[342384335,1731781924299,-277.8,9.998e-05,2]
[342384336,1731781924309,-1029.87,9.998e-05,2]
[342384337,1731781924320,-500.0,9.998e-05,2]
[342384338,1731781924331,-736.75,9.998e-05,2]
[342384339,1731781924343,-1494.18,9.998e-05,2]
[342384340,1731781924354,-1494.18,9.998e-05,2]
[342384341,1731781924364,-1494.18,9.998e-05,2]
[342384342,1731781924375,-1494.18,9.998e-05,2]
[342384343,1731781924387,-1494.36305471,9.998e-05,2]
[342384344,1731781924397,-884.81,9.998e-05,2]
[342384345,1731781924407,-884.81,9.998e-05,2]
[342384346,1731781924417,-884.81,9.998e-05,2]
[342384347,1731781924427,-548.21,9.998e-05,2]
[342384348,1731781924438,-548.21,9.998e-05,2]
[342384349,1731781924449,-548.21,9.998e-05,2]
[342384350,1731781924459,-500.0,9.998e-05,2]
[342384351,1731781924470,-585.31,9.998e-05,2]
[342384352,1731781924481,-585.31,9.998e-05,2]
[342384353,1731781924491,-585.31,9.998e-05,2]
[342384354,1731781924501,-500.0,9.998e-05,2]
[342384355,1731781924512,-500.0,9.998e-05,2]
[342384356,1731781924522,-500.0,9.998e-05,2]
[342384357,1731781924533,-299.63,9.998e-05,2]
[342384358,1731781924543,-606.22,9.998e-05,2]
[342384359,1731781924554,-571.8,9.998e-05,2]
[342384360,1731781924564,-500.0,9.998e-05,2]
[342384361,1731781924574,-500.0,9.998e-05,2]
[342384362,1731781924584,-500.0,9.998e-05,2]
[342384363,1731781924596,-1272.33,9.998e-05,2]
[342384364,1731781924606,-500.0,9.998e-05,2]
[342384365,1731781924615,-500.0,9.998e-05,2]
[342384366,1731781924625,-512.04443995,9.998e-05,2]
[342384367,1731781924635,-737.78,9.998e-05,2]
[342384368,1731781924645,-737.78,9.998e-05,2]
[342384369,1731781924654,-737.78,9.998e-05,2]
[342384370,1731781924664,-1245.98,9.998e-05,2]
[342384371,1731781924674,-540.78,9.998e-05,2]
[342384372,1731781924685,-1245.98,9.998e-05,2]
[342384373,1731781924695,-540.78,9.998e-05,2]
[342384374,1731781924706,-1245.98,9.998e-05,2]
[342384375,1731781924716,-540.78,9.998e-05,2]
[342384376,1731781924727,-540.78,9.998e-05,2]
[342384377,1731781924738,-540.91777327,9.998e-05,2]
[342384378,1731781924748,-1500.58,9.998e-05,2]
[342384379,1731781924759,-1500.58,9.998e-05,2]
[342384380,1731781924769,-1500.58,9.998e-05,2]
[342384381,1731781924779,-531.54,9.998e-05,2]
[342384382,1731781924789,-531.54,9.998e-05,2]
[342384383,1731781924800,-531.54,9.998e-05,2]
[342384384,1731781924810,-500.0,9.998e-05,2]
[342384385,1731781924820,-818.94,9.998e-05,2]
[342384386,1731781924829,-500.0,9.998e-05,2]
[342384387,1731781924841,-818.94,9.998e-05,2]
[342384388,1731781924851,-643.25,9.998e-05,2]
[342384389,1731781924861,-500.0,9.998e-05,2]
[342384390,1731781924871,-818.94,9.998e-05,2]
[342384391,1731781924882,-643.25,9.998e-05,2]
[342384392,1731781924892,-643.25,9.998e-05,2]
[342384393,1731781924903,-732.48,9.998e-05,2]
[342384394,1731781924912,-732.48,9.998e-05,2]
[342384395,1731781924922,-732.48,9.998e-05,2]
[342384396,1731781924932,-500.0,9.998e-05,2]
[342384397,1731781924942,-500.0,9.998e-05,2]
[342384398,1731781924952,-648.58,9.998e-05,2]
[342384399,1731781924963,-648.58,9.998e-05,2]
[342384400,1731781924972,-500.0,9.998e-05,2]
[342384401,1731781924982,-648.58,9.998e-05,2]
[342384402,1731781924993,-500.0,9.998e-05,2]
[342384403,1731781925004,-500.0,9.998e-05,2]
[342384404,1731781925015,-500.0,9.998e-05,2]
[342384405,1731781925026,-500.0,9.998e-05,2]
[342384406,1731781925037,-561.54,9.998e-05,2]
[342384407,1731781925048,-1067.48,9.998e-05,2]
[342384408,1731781925063,-1067.48,9.998e-05,2]
[342384409,1731781925074,-1067.48,9.998e-05,2]
[342384410,1731781925085,-634.6,9.998e-05,2]
[342384411,1731781925103,-634.6,9.998e-05,2]
[342384412,1731781925114,-634.6,9.998e-05,2]
[342384413,1731781925124,-996.13,9.998e-05,2]
[342384414,1731781925136,-996.13,9.998e-05,2]
[342384415,1731781925146,-171.63163415,9.998e-05,2]
[342384416,1731781925157,-996.13,9.998e-05,2]
[342384417,1731781925168,-827.98,9.998e-05,2]
[342384418,1731781925178,-827.98,9.998e-05,2]
[342384419,1731781925188,-827.98,9.998e-05,2]
[342384420,1731781925198,-598.21,9.998e-05,2]
[342384421,1731781925208,-500.0,9.998e-05,2]
[342384422,1731781925219,-500.0,9.998e-05,2]
[342384423,1731781925229,-500.0,9.998e-05,2]
[342384424,1731781925239,-2327.39,9.998e-05,2]
[342384425,1731781925250,-2327.39,9.998e-05,2]
[342384426,1731781925260,-2327.39,9.998e-05,2]
[342384427,1731781925270,-500.0,9.998e-05,2]
[342384428,1731781925280,-500.0,9.998e-05,2]
[342384429,1731781925290,-500.0,9.998e-05,2]
[342384430,1731781925300,-248.37466167,9.998e-05,2]
[342384431,1731781925310,-700.31,9.998e-05,2]
[342384432,1731781925320,-700.31,9.998e-05,2]
[342384433,1731781925331,-700.31,9.998e-05,2]
[342384434,1731781925343,-569.01,9.998e-05,2]
[342384435,1731781925353,-569.01,9.998e-05,2]
[342384436,1731781925363,-569.01,9.998e-05,2]
[342384437,1731781925372,-155.14647826,9.998e-05,2]
[342384438,1731781925383,-500.0,9.998e-05,2]
[342384439,1731781925394,-500.0,9.998e-05,2]
[342384440,1731781925404,-500.0,9.998e-05,2]
[342384441,1731781925415,-827.35,9.998e-05,2]
[342384442,1731781925425,-827.35,9.998e-05,2]
[342384443,1731781925435,-827.35,9.998e-05,2]
[342384444,1731781925445,-500.0,9.998e-05,2]
[342384445,1731781925456,-1104.21,9.998e-05,2]
[342384446,1731781925466,-1104.21,9.998e-05,2]
[342384447,1731781925476,-1104.21,9.998e-05,2]
[342384448,1731781925486,-815.66,9.998e-05,2]
[342384449,1731781925496,-815.66,9.998e-05,2]
[342384450,1731781925506,-815.66,9.998e-05,2]
[342384451,1731781925516,-1652.0,9.998e-05,2]
[342384452,1731781925526,-1652.0,9.998e-05,2]
[342384453,1731781925535,-1652.0,9.998e-05,2]
[342384454,1731781925546,-500.0,9.998e-05,2]
[342384455,1731781925555,-500.0,9.998e-05,2]
[342384456,1731781925565,-500.0,9.998e-05,2]
[342384457,1731781925575,-500.0,9.998e-05,2]
[342384458,1731781925585,-313.1265827,9.998e-05,2]
[342384459,1731781925601,-1317.32,9.998e-05,2]
[342384460,1731781925610,-1317.32,9.998e-05,2]
[342384461,1731781925620,-1317.32,9.998e-05,2]
[342384462,1731781925630,-500.0,9.998e-05,2]
[342384463,1731781925640,-500.0,9.998e-05,2]
[342384464,1731781925649,-433.07,9.998e-05,2]
[342384465,1731781925659,-568.97,9.998e-05,2]
[342384466,1731781925669,-568.97,9.998e-05,2]
[342384467,1731781925679,-568.97,9.998e-05,2]
[342384468,1731781925689,-500.0,9.998e-05,2]
[342384469,1731781925699,-500.0,9.998e-05,2]
[342384470,1731781925709,-500.0,9.998e-05,2]
[342384471,1731781925720,-754.24,9.998e-05,2]
[342384472,1731781925730,-754.24,9.998e-05,2]
[342384473,1731781925739,-754.24,9.998e-05,2]
[342384474,1731781925749,-627.63,9.998e-05,2]
[342384475,1731781925759,-500.0,9.998e-05,2]
[342384476,1731781925768,-500.0,9.998e-05,2]
[342384477,1731781925779,-500.0,9.998e-05,2]
[342384478,1731781925789,-1174.63,9.998e-05,2]
[342384479,1731781925799,-1174.63,9.998e-05,2]
[342384480,1731781925809,-1174.63,9.998e-05,2]
[342384481,1731781925819,-1196.21,9.998e-05,2]
[342384482,1731781925828,-1196.21,9.998e-05,2]
[342384483,1731781925841,-1196.21,9.998e-05,2]
[342384484,1731781925851,-724.22,9.998e-05,2]
[342384485,1731781925860,-724.22,9.998e-05,2]
[342384486,1731781925870,-724.22,9.998e-05,2]
[342384487,1731781925879,-500.0,9.998e-05,2]
[342384488,1731781925889,-500.0,9.998e-05,2]
[342384489,1731781925899,-500.0,9.998e-05,2]
[342384490,1731781925909,-570.43,9.998e-05,2]
[342384491,1731781925918,-570.43,9.998e-05,2]
[342384492,1731781925928,-570.43,9.998e-05,2]
[342384493,1731781925938,-541.3,9.998e-05,2]
[342384494,1731781925947,-541.3,9.998e-05,2]
[342384495,1731781925957,-541.3,9.998e-05,2]
[342384496,1731781925967,-500.0,9.998e-05,2]
[342384497,1731781925977,-500.0,9.998e-05,2]
[342384498,1731781925987,-500.0,9.998e-05,2]
[342384499,1731781925997,-500.0,9.998e-05,2]
[342384500,1731781926011,-500.0,9.998e-05,2]
[342384501,1731781926021,-500.0,9.998e-05,2]
[342384502,1731781926030,-1804.53,9.998e-05,2]
[342384503,1731781926040,-500.0,9.998e-05,2]
[342384504,1731781926050,-1804.53,9.998e-05,2]
[342384505,1731781926065,-1804.53,9.998e-05,2]
[342384506,1731781926075,-514.68,9.998e-05,2]
[342384507,1731781926085,-500.0,9.998e-05,2]
[342384508,1731781926100,-500.0,9.998e-05,2]
[342384509,1731781926110,-500.0,9.998e-05,2]
[342384510,1731781926119,-568.75,9.998e-05,2]
[342384511,1731781926130,-788.09,9.998e-05,2]
[342384512,1731781926140,-788.09,9.998e-05,2]
[342384513,1731781926150,-788.09,9.998e-05,2]
[342384514,1731781926160,-899.27,9.998e-05,2]
[342384515,1731781926170,-899.27,9.998e-05,2]
[342384516,1731781926180,-899.27,9.998e-05,2]
[342384517,1731781926190,-500.0,9.998e-05,2]
[342384518,1731781926200,-500.0,9.998e-05,2]
[342384519,1731781926210,-500.0,9.998e-05,2]
[342384520,1731781926219,-637.8586675,9.998e-05,2]
[342384521,1731781926230,-500.0,9.998e-05,2]
[342384522,1731781926240,-624.79,9.998e-05,2]
[342384523,1731781926250,-624.79,9.998e-05,2]
[342384524,1731781926260,-624.79,9.998e-05,2]
[342384525,1731781926269,-670.96,9.998e-05,2]
[342384526,1731781926279,-670.96,9.998e-05,2]
[342384527,1731781926288,-670.96,9.998e-05,2]
[342384528,1731781926299,-716.94,9.998e-05,2]
[342384529,1731781926309,-716.94,9.998e-05,2]
[342384530,1731781926319,-716.94,9.998e-05,2]
[342384531,1731781926329,-500.0,9.998e-05,2]
[342384532,1731781926340,-500.0,9.998e-05,2]
[342384533,1731781926350,-500.0,9.998e-05,2]
[342384534,1731781926361,-557.44,9.998e-05,2]
[342384535,1731781926457,-500.0,9.998e-05,2]
[342384536,1731781926467,-500.0,9.998e-05,2]
[342384537,1731781926477,-500.0,9.998e-05,2]
[342384538,1731781926487,-622.63,9.998e-05,2]
[342384539,1731781926496,-595.45,9.998e-05,2]
[342384540,1731781926505,-595.45,9.998e-05,2]
[342384541,1731781926515,-595.45,9.998e-05,2]
[342384542,1731781926525,-628.01,9.998e-05,2]
[342384543,1731781926535,-500.0,9.998e-05,2]
[342384544,1731781926544,-628.01,9.998e-05,2]
[342384545,1731781926554,-570.25,9.998e-05,2]
[342384546,1731781926564,-628.01,9.998e-05,2]
[342384547,1731781926573,-648.13,9.998e-05,2]
[342384548,1731781926583,-648.13,9.998e-05,2]
[342384549,1731781926594,-648.13,9.998e-05,2]
[342384550,1731781926603,-581.34,9.998e-05,2]
[342384551,1731781926613,-581.34,9.998e-05,2]
[342384552,1731781926623,-581.34,9.998e-05,2]
[342384553,1731781926633,-500.0,9.998e-05,2]
[342384554,1731781926643,-708.4,9.998e-05,2]
[342384555,1731781926652,-708.4,9.998e-05,2]
[342384556,1731781926663,-708.4,9.998e-05,2]
[342384557,1731781926674,-708.4,9.998e-05,2]
[342384558,1731781926684,-708.44769402,9.998e-05,2]
[342384559,1731781926695,-500.0,9.998e-05,2]
[342384560,1731781926705,-500.0,9.998e-05,2]
[342384561,1731781926716,-500.0,9.998e-05,2]
[342384562,1731781926727,-586.66,9.998e-05,2]
[342384563,1731781926738,-747.03,9.998e-05,2]
[342384564,1731781926749,-747.03,9.998e-05,2]
[342384565,1731781926759,-747.03,9.998e-05,2]
[342384566,1731781926770,-500.0,9.998e-05,2]
[342384567,1731781926782,-500.0,9.998e-05,2]
[342384568,1731781926793,-500.0,9.998e-05,2]
[342384569,1731781926804,-1454.31,9.998e-05,2]
[342384570,1731781926815,-500.0,9.998e-05,2]
[342384571,1731781926826,-500.0,9.998e-05,2]
[342384572,1731781926838,-1704.03,9.998e-05,2]
[342384573,1731781926857,-500.0,9.998e-05,2]
[342384574,1731781926868,-1704.03,9.998e-05,2]
[342384575,1731781926885,-1704.03,9.998e-05,2]
[342384576,1731781926896,-500.0,9.998e-05,2]
[342384577,1731781926906,-500.0,9.998e-05,2]
[342384578,1731781926917,-500.0,9.998e-05,2]
[342384579,1731781926928,-500.0,9.998e-05,2]
[342384580,1731781926940,-500.0,9.998e-05,2]
[342384581,1731781926951,-500.0,9.998e-05,2]
[342384582,1731781926963,-839.65,9.998e-05,2]
[342384583,1731781926975,-839.65,9.998e-05,2]
[342384584,1731781926986,-839.65,9.998e-05,2]
[342384585,1731781926996,-590.44,9.998e-05,2]
[342384586,1731781927007,-590.44,9.998e-05,2]
[342384587,1731781927018,-590.44,9.998e-05,2]
[342384588,1731781927030,-700.0,9.998e-05,2]
[342384589,1731781927041,-700.0,9.998e-05,2]
[342384590,1731781927052,-700.0,9.998e-05,2]
[342384591,1731781927065,-700.0,9.998e-05,2]
[342384592,1731781927075,-700.2,9.998e-05,2]
[342384593,1731781927086,-1026.66,9.998e-05,2]
[342384594,1731781927097,-1026.66,9.998e-05,2]
[342384595,1731781927107,-1026.66,9.998e-05,2]
[342384596,1731781927118,-1128.16,9.998e-05,2]
[342384597,1731781927128,-1128.16,9.998e-05,2]
[342384598,1731781927140,-1128.16,9.998e-05,2]
[342384599,1731781927150,-500.0,9.998e-05,2]
[342384600,1731781927160,-500.0,9.998e-05,2]
[342384601,1731781927170,-500.0,9.998e-05,2]
[342384602,1731781927179,-625.17221813,9.998e-05,2]
[342384603,1731781927189,-500.0,9.998e-05,2]
[342384604,1731781927200,-609.7,9.998e-05,2]
[342384605,1731781927209,-864.18,9.998e-05,2]
[342384606,1731781927220,-864.18,9.998e-05,2]
[342384607,1731781927229,-864.18,9.998e-05,2]
[342384608,1731781927239,-500.0,9.998e-05,2]
[342384609,1731781927250,-500.0,9.998e-05,2]
[342384610,1731781927259,-696.5,9.998e-05,2]
[342384611,1731781927270,-500.0,9.998e-05,2]
[342384612,1731781927280,-696.5,9.998e-05,2]
[342384613,1731781927291,-696.5,9.998e-05,2]
[342384614,1731781927301,-695.01,9.998e-05,2]
[342384615,1731781927310,-695.01,9.998e-05,2]
[342384616,1731781927320,-695.01,9.998e-05,2]
[342384617,1731781927330,-500.0,9.998e-05,2]
[342384618,1731781927344,-500.0,9.998e-05,2]
[342384619,1731781927358,-500.0,9.998e-05,2]
[342384620,1731781927368,-500.0,9.998e-05,2]
[342384621,1731781927378,-500.0,9.998e-05,2]
[342384622,1731781927387,-182.68,9.998e-05,2]
[342384623,1731781927397,-543.58,9.999e-05,2]
[342384624,1731781927407,-543.58,9.999e-05,2]
[342384625,1731781927416,-543.58,9.999e-05,2]
[342384626,1731781927426,-543.58,9.999e-05,2]
[342384627,1731781927436,-543.58,9.999e-05,2]
[342384628,1731781927446,-543.58,9.999e-05,2]
[342384629,1731781927455,-543.58,9.999e-05,2]
[342384630,1731781927466,-543.58,9.999e-05,2]
[342384631,1731781927475,-543.58,9.999e-05,2]
[342384632,1731781927485,-543.76,9.999e-05,2]
[342384633,1731781927495,-671.11,9.999e-05,2]
[342384634,1731781927504,-671.11,9.999e-05,2]
[342384635,1731781927514,-671.11,9.999e-05,2]
[342384636,1731781927524,-671.11,9.999e-05,2]
[342384637,1731781927533,-671.11,9.999e-05,2]
[342384638,1731781927543,-671.11,9.999e-05,2]
[342384639,1731781927552,-671.11,9.999e-05,2]
[342384640,1731781927561,-671.11,9.999e-05,2]
[342384641,1731781927572,-671.11,9.999e-05,2]
[342384642,1731781927581,-671.14,9.999e-05,2]
[342384643,1731781927603,-591.49,9.999e-05,2]
[342384644,1731781927614,-591.49,9.999e-05,2]
[342384645,1731781927624,-591.49,9.999e-05,2]
[342384646,1731781927633,-591.49,9.999e-05,2]
[342384647,1731781927643,-591.49,9.999e-05,2]
[342384648,1731781927653,-591.49,9.999e-05,2]
[342384649,1731781927663,-591.49,9.999e-05,2]
[342384650,1731781927675,-591.49,9.999e-05,2]
[342384651,1731781927686,-591.49,9.999e-05,2]
[342384652,1731781927696,-591.49,9.999e-05,2]
[342384653,1731781927706,-738.74,9.999e-05,2]
[342384654,1731781927716,-738.74,9.999e-05,2]
[342384655,1731781927727,-738.74,9.999e-05,2]
[342384656,1731781927738,-738.74,9.999e-05,2]
[342384657,1731781927748,-738.74,9.999e-05,2]
[342384658,1731781927759,-738.74,9.999e-05,2]
[342384659,1731781927768,-738.74,9.999e-05,2]
[342384660,1731781927779,-738.74,9.999e-05,2]
[342384661,1731781927789,-738.74,9.999e-05,2]
[342384662,1731781927799,-738.87,9.999e-05,2]
[342384663,1731781927808,-780.84,9.999e-05,2]
[342384664,1731781927818,-780.84,9.999e-05,2]
[342384665,1731781927827,-780.84,9.999e-05,2]
[342384666,1731781927837,-780.84,9.999e-05,2]
[342384667,1731781927850,-780.84,9.999e-05,2]
[342384668,1731781927860,-780.84,9.999e-05,2]
[342384669,1731781927869,-780.84,9.999e-05,2]
[342384670,1731781927879,-780.84,9.999e-05,2]
[342384671,1731781927889,-780.84,9.999e-05,2]
[342384672,1731781927899,-781.0,9.999e-05,2]
[342384673,1731781927908,-755.72,9.999e-05,2]
[342384674,1731781927918,-755.72,9.999e-05,2]
[342384675,1731781927928,-755.72,9.999e-05,2]
[342384676,1731781927938,-755.72,9.999e-05,2]
[342384677,1731781927948,-755.72,9.999e-05,2]
[342384678,1731781927958,-755.72,9.999e-05,2]
[342384679,1731781927968,-755.72,9.999e-05,2]
[342384680,1731781927977,-755.72,9.999e-05,2]
[342384681,1731781927987,-755.72,9.999e-05,2]
[342384682,1731781927996,-755.78207391,9.999e-05,2]
[342384683,1731781928005,-382.56,9.999e-05,2]
[342384684,1731781928015,-500.0,9.999e-05,2]
[342384685,1731781928024,-500.0,9.999e-05,2]
[342384686,1731781928034,-500.0,9.999e-05,2]
[342384687,1731781928044,-500.0,9.999e-05,2]
[342384688,1731781928054,-500.0,9.999e-05,2]
[342384689,1731781928065,-500.0,9.999e-05,2]
[342384690,1731781928074,-500.0,9.999e-05,2]
[342384691,1731781928084,-500.0,9.999e-05,2]
[342384692,1731781928096,-602.51,9.999e-05,2]
[342384693,1731781928106,-1029.87,9.999e-05,2]
[342384694,1731781928116,-1029.87,9.999e-05,2]
[342384695,1731781928126,-1029.87,9.999e-05,2]
[342384696,1731781928136,-1029.87,9.999e-05,2]
[342384697,1731781928146,-1029.87,9.999e-05,2]
[342384698,1731781928156,-1029.87,9.999e-05,2]
[342384699,1731781928166,-1029.87,9.999e-05,2]
[342384700,1731781928175,-1029.87,9.999e-05,2]
[342384701,1731781928185,-1029.87,9.999e-05,2]
[342384702,1731781928195,-1029.87,9.999e-05,2]
[342384703,1731781928204,-500.0,9.999e-05,2]
[342384704,1731781928214,-500.0,9.999e-05,2]
[342384705,1731781928223,-500.0,9.999e-05,2]
[342384706,1731781928232,-293.71,9.999e-05,2]
[342384707,1731781928241,-736.75,9.999e-05,2]
[342384708,1731781928251,-736.75,9.999e-05,2]
[342384709,1731781928261,-736.75,9.999e-05,2]
[342384710,1731781928271,-736.75,9.999e-05,2]
[342384711,1731781928280,-736.75,9.999e-05,2]
[342384712,1731781928290,-736.75,9.999e-05,2]
[342384713,1731781928300,-736.75,9.999e-05,2]
[342384714,1731781928310,-736.75,9.999e-05,2]
[342384715,1731781928319,-736.75,9.999e-05,2]
[342384716,1731781928328,-736.82112253,9.999e-05,2]
[342384717,1731781928338,-884.81,9.999e-05,2]
[342384718,1731781928349,-884.81,9.999e-05,2]
[342384719,1731781928358,-884.81,9.999e-05,2]
[342384720,1731781928367,-884.81,9.999e-05,2]
[342384721,1731781928377,-884.81,9.999e-05,2]
[342384722,1731781928386,-548.21,9.999e-05,2]
[342384723,1731781928395,-548.21,9.999e-05,2]
[342384724,1731781928405,-548.21,9.999e-05,2]
[342384725,1731781928414,-548.21,9.999e-05,2]
[342384726,1731781928424,-548.21,9.999e-05,2]
[342384727,1731781928433,-548.21,9.999e-05,2]
[342384728,1731781928443,-548.33,9.999e-05,2]
[342384729,1731781928451,-884.81,9.999e-05,2]
[342384730,1731781928461,-885.04,9.999e-05,2]
[342384731,1731781928470,-333.51853268,9.999e-05,2]
[342384732,1731781928479,-585.31,9.999e-05,2]
[342384733,1731781928488,-585.31,9.999e-05,2]
[342384734,1731781928497,-585.31,9.999e-05,2]
[342384735,1731781928506,-585.31,9.999e-05,2]
[342384736,1731781928515,-585.31,9.999e-05,2]
[342384737,1731781928525,-585.31,9.999e-05,2]
[342384738,1731781928535,-585.37,9.999e-05,2]
[342384739,1731781928544,-500.0,9.999e-05,2]
[342384740,1731781928554,-500.0,9.999e-05,2]
[342384741,1731781928563,-345.30787108,9.999e-05,2]
[342384742,1731781928572,-606.22,9.999e-05,2]
[342384743,1731781928581,-606.22,9.999e-05,2]
[342384744,1731781928593,-606.22,9.999e-05,2]
[342384745,1731781928603,-606.22,9.999e-05,2]
[342384746,1731781928612,-606.22,9.999e-05,2]
[342384747,1731781928621,-606.22,9.999e-05,2]
[342384748,1731781928631,-606.22,9.999e-05,2]
[342384749,1731781928640,-606.22,9.999e-05,2]
[342384750,1731781928649,-606.22,9.999e-05,2]
[342384751,1731781928659,-606.42,9.999e-05,2]
[342384752,1731781928669,-571.8,9.999e-05,2]